fUSD/lending_fUSD_20250612
["ID","MTS","AMOUNT","RATE_DAILY","PERIOD"]
[365528542,1749759167822,-522.62233645,0.00023,30]
[365528543,1749759167842,-900.0,0.00023,30]
[365528544,1749759167863,-900.0,0.00023,30]
[365528545,1749759167882,-900.0,0.00023,30]
[365528546,1749759167902,-500.0,0.00023,30]
[365528547,1749759167925,-900.0,0.00023,30]
[365528548,1749759167945,-500.0,0.00023,30]
[365528549,1749759167967,-900.0,0.00023,30]
[365528550,1749759167988,-675.28338993,0.00023,30]
[365528551,1749759168009,-900.0,0.00023,30]
[365528552,1749759168030,-900.0,0.00023,30]
[365528553,1749759168052,-900.0,0.00023,30]
[365528554,1749759168073,-3100.0,0.00023,30]
[365528555,1749759168094,-900.0,0.00023,30]
[365528556,1749759168116,-3100.0,0.00023,30]
[365528557,1749759168138,-900.0,0.00023,30]
[365528558,1749759168159,-3100.0,0.00023,30]
[365528559,1749759168183,-900.0,0.00023,30]
[365528560,1749759168206,-3100.0,0.00023,30]
[365528561,1749759168228,-500.0,0.00023,30]
[365528562,1749759168258,-963.73905736,0.00023,30]
[365528563,1749759168279,-3100.0,0.00023,30]
[365528564,1749759168301,-528.61617163,0.00023,30]
[365528565,1749759168322,-2500.0,0.00023,30]
[365528566,1749759168343,-3100.0,0.00023,30]
[365528567,1749759168364,-740.32182103,0.00023,30]
[365528568,1749759168384,-2500.0,0.00023,30]
[365528569,1749759168405,-3100.0,0.00023,30]
[365528570,1749759168427,-2500.0,0.00023,30]
[365528571,1749759168448,-3100.0,0.00023,30]
[365528572,1749759168468,-2500.0,0.00023,30]
[365528573,1749759168489,-3100.0,0.00023,30]
[365528574,1749759168511,-2500.0,0.00023,30]
[365528575,1749759168536,-500.0,0.00023,30]
[365528576,1749759168556,-500.0,0.00023,30]
[365528577,1749759168577,-3100.0,0.00023,30]
[365528578,1749759168598,-500.0,0.00023,30]
[365528579,1749759168621,-2500.0,0.00023,30]
[365528580,1749759168642,-500.0,0.00023,30]
[365528581,1749759168662,-500.0,0.00023,30]
[365528582,1749759168686,-975.7345932,0.00023,30]
[365528583,1749759168707,-2500.0,0.00023,30]
[365528584,1749759168729,-500.0,0.00023,30]
[365528585,1749759168750,-2500.0,0.00023,30]
[365528586,1749759168772,-3100.0,0.00023,30]
[365528587,1749759168792,-500.0,0.00023,30]
[365528588,1749759168814,-500.0,0.00023,30]
[365528589,1749759168835,-2500.0,0.00023,30]
[365528590,1749759168857,-3100.0,0.00023,30]
[365528591,1749759168878,-923.3404752,0.00023,30]
[365528592,1749759168899,-500.0,0.00023,30]
[365528593,1749759169186,-2500.0,0.00023,30]
[365528594,1749759169208,-3100.0,0.00023,30]
[365528595,1749759169230,-500.0,0.00023,30]
[365528596,1749759169251,-2500.0,0.00023,30]
[365528597,1749759169273,-600.0,0.00023,30]
[365528598,1749759169295,-4357.75910709,0.00023,30]
[365528599,1749759169316,-500.0,0.00023,30]
[365528600,1749759169337,-600.0,0.00023,30]
[365528601,1749759169357,-500.0,0.00023,30]
[365528602,1749759169377,-600.0,0.00023,30]
[365528603,1749759169400,-500.0,0.00023,30]
[365528604,1749759169421,-600.0,0.00023,30]
[365528605,1749759169443,-500.0,0.00023,30]
[365528606,1749759169464,-2500.0,0.00023,30]
[365528607,1749759169485,-600.0,0.00023,30]
[365528608,1749759169505,-500.0,0.00023,30]
[365528609,1749759169526,-2500.0,0.00023,30]
[365528610,1749759169547,-600.0,0.00023,30]
[365528611,1749759169567,-500.0,0.00023,30]
[365528612,1749759169588,-4279.7644996,0.00023,30]
[365528613,1749759169612,-600.0,0.00023,30]
[365528614,1749759169633,-668.35297736,0.00023,30]
[365528615,1749759169654,-600.0,0.00023,30]
[365528616,1749759169678,-600.0,0.00023,30]
[365528617,1749759169700,-700.0,0.00023,30]
[365528618,1749759169721,-600.0,0.00023,30]
[365528619,1749759169743,-700.0,0.00023,30]
[365528620,1749759169765,-600.0,0.00023,30]
[365528621,1749759169786,-700.0,0.00023,30]
[365528622,1749759169807,-600.0,0.00023,30]
[365528623,1749759169828,-700.0,0.00023,30]
[365528624,1749759169850,-600.0,0.00023,30]
[365528625,1749759169871,-700.0,0.00023,30]
[365528626,1749759169893,-706.50396344,0.00023,30]
[365528627,1749759169918,-700.0,0.00023,30]
[365528628,1749759169940,-700.0,0.00023,30]
[365528629,1749759169962,-700.0,0.00023,30]
[365528630,1749759169984,-700.0,0.00023,30]
[365528631,1749759170005,-700.0,0.00023,30]
[365528632,1749759170028,-700.0,0.00023,30]
[365528633,1749759170050,-501.65401243,0.00023,30]
[365528635,1749759214456,431.73,0.00013699,2]
[365528636,1749759217396,-500.0,0.000247,120]
[365528637,1749759217419,-500.0,0.00024999,120]
[365528638,1749759217446,-999000.0,0.00025,120]
[365528639,1749759260939,-1287372.61788169,0.00025,120]
[365528640,1749759260962,-12627.38211831,0.00025,120]
[365528641,1749759461392,200.0,0.00015974,2]
[365528642,1749759499695,-200.0,0.00016012,2]
[365528643,1749759548800,200.0,0.0001599,7]
[365528644,1749759678913,891.67,0.00014078,2]
[365528645,1749759689974,1000.0,0.00015984,2]
[365528646,1749759738525,666.0,0.00015975,2]
[365528647,1749759823601,200.0,0.00015998,2]
[365528648,1749759851776,205.0,0.00015998,2]
[365528649,1749759878150,6531.77,0.00015963,2]
[365528650,1749759966884,226.88,0.00015973,2]
[365528651,1749759967093,226.88,0.00015977,2]
[365528652,1749759967305,226.88,0.00015981,2]
[365528653,1749759967516,226.88,0.00015985,2]
[365528654,1749759967721,226.88,0.00015989,2]
[365528655,1749759973698,226.88,0.00015994,2]
[365528656,1749759973915,226.88,0.00015998,2]
[365528657,1749759975140,-164.3745048,0.00016002,2]
[365528658,1749759984875,-62.5054952,0.00016002,2]
[365528659,1749759984897,-226.88,0.00016006,2]
[365528660,1749759984920,-10.45060216,0.0001601,2]
[365528661,1749759987298,-216.42939784,0.0001601,2]
[365528662,1749759987327,-32.10477626,0.00016015,2]
[365528663,1749759989393,-194.77522374,0.00016015,2]
[365528664,1749759999141,152.9,0.00015725,2]
[365528683,1749760231652,-226.88,0.00016019,2]
[365528684,1749760231663,-300.0,0.00016019,2]
[365528685,1749760231672,-300.0,0.00016019,2]
[365528686,1749760231682,-250.0,0.0001602,2]
[365528687,1749760231691,-421.76196155,0.0001602,2]
[365528689,1749760231703,-362.80803845,0.0001602,2]
[365528690,1749760231712,-177.72326307,0.00016023,2]
[365528691,1749760231724,-49.15673693,0.00016023,2]
[365528692,1749760231733,-226.88,0.00016027,2]
[365528693,1749760231743,-226.88,0.00016031,2]
[365528694,1749760231753,-77.62417863,0.00016036,2]
[365528695,1749760231764,-149.25582137,0.00016036,2]
[365528696,1749760231775,-226.88,0.0001604,2]
[365528697,1749760231785,-600.0,0.00016041,4]
[365528698,1749760231794,-226.88,0.00016044,2]
[365528699,1749760231803,-9.16177471,0.00016048,2]
[365528700,1749760231846,-217.71822529,0.00016048,2]
[365528701,1749760231856,-226.88,0.00016052,2]
[365528702,1749760231866,-200.0,0.00016126,2]
[365528703,1749760231876,-280.77,0.00016265,2]
[365528704,1749760231886,-891.67,0.00016342,2]
[365528705,1749760231895,-250.0,0.00016347,2]
[365528706,1749760231905,-183.0,0.00016656,2]
[365528707,1749760231915,-919.587863,0.0001666,2]
[365528708,1749760231924,-310.0,0.00016691,2]
[365528709,1749760231934,-1008.0,0.00016714,2]
[365528710,1749760231948,-508.44608238,0.00016745,2]
[365528711,1749760231960,-639.16242228,0.00016745,2]
[365528712,1749760231971,-52.39149534,0.00016745,2]
[365528713,1749760231980,-494.20243903,0.00016746,2]
[365528714,1749760231997,-373.79002117,0.00016746,2]
[365528715,1749760232007,-200.0,0.00016864,2]
[365528716,1749760232016,-431.72366094,0.00016888,2]
[365528717,1749760232029,-1526.13233906,0.00016888,2]
[365528718,1749760232039,-207.4,0.00016888,2]
[365528719,1749760232048,-151.0,0.0001689,2]
[365528720,1749760232058,-500.0,0.0001689,2]
[365528722,1749760232067,-500.0,0.0001689,2]
[365528724,1749760232076,-367.97428001,0.0001689,2]
[365528726,1749760232086,-500.0,0.0001689,2]
[365528728,1749760232095,-500.0,0.00016899,2]
[365528729,1749760232104,-430.87681237,0.00016899,2]
[365528731,1749760232113,-1360.1869,0.000169,2]
[365528732,1749760232123,-1000.0,0.000169,2]
[365528734,1749760232133,-24711.1809,0.000169,2]
[365528736,1749760232142,-19181.89436605,0.000169,2]
[365528737,1749760232152,-480.65429548,0.000169,2]
[365528738,1749760232160,-905.94,0.000169,2]
[365528739,1749760232169,-188.97861563,0.000169,2]
[365528740,1749760232179,-221.59,0.000169,2]
[365528741,1749760232191,-1412.0,0.00016907,2]
[365528742,1749760232201,-833.43051846,0.0001694,2]
[365528743,1749760232213,-2030.296672,0.00016943,2]
[365528744,1749760232222,-500.0,0.00016973,2]
[365528745,1749760232231,-500.0,0.00016973,2]
[365528746,1749760232241,-500.0,0.00016973,2]
[365528747,1749760232250,-500.0,0.00016973,2]
[365528748,1749760232259,-13039.53645199,0.0001699,2]
[365528749,1749760232268,-24673.37227261,0.0001699,2]
[365528750,1749760232278,-990.0,0.00016991,2]
[365528751,1749760232287,-2105.41764886,0.00016998,2]
[365528752,1749760232296,-1001.6933,0.00016999,2]
[365528753,1749760232306,-180.51,0.00016999,2]
[365528754,1749760232315,-1007.542,0.00016999,2]
[365528755,1749760232325,-500.0,0.00016999,2]
[365528756,1749760232334,-419.44794938,0.00016999,2]
[365528757,1749760232344,-500.0,0.00016999,2]
[365528758,1749760232353,-661.0,0.00017,2]
[365528759,1749760232363,-833.43051846,0.00017,3]
[365528760,1749760232372,-17290.15338854,0.00017,2]
[365528761,1749760232383,-1338.16083642,0.00017,2]
[365528762,1749760232395,-3132.01326741,0.00017,2]
[365528763,1749760232410,-725.78234473,0.00017,2]
[365528764,1749760232421,-4798.5,0.00017,2]
[365528765,1749760232432,-107355.76010671,0.00017,2]
[365528766,1749760232444,-547.25853702,0.00017,2]
[365528767,1749760232455,-4187.37717545,0.00017,2]
[365528768,1749760232467,-2559.60000002,0.00017,2]
[365528769,1749760232479,-840.06683879,0.00017,2]
[365528770,1749760232491,-1067.6666,0.00017,2]
[365528771,1749760232506,-1264.60340573,0.00017,2]
[365528786,1749760237650,-550.99511947,0.00017,3]
[365528788,1749760237661,-444.19051948,0.00017,3]
[365528790,1749760237672,-1455.14471721,0.00017,3]
[365528794,1749760237711,-539.59394499,0.00017,3]
[365528795,1749760237722,-1599.05,0.00017,3]
[365528799,1749760237767,-54950.17067154,0.00017,3]
[365528800,1749760237776,-61422.62745744,0.00017,2]
[365528801,1749760237824,-34546.59761234,0.00017,2]
[365528802,1749760237836,-15969.0,0.00017,2]
[365528803,1749760237883,-2133.6,0.00017,2]
[365528819,1749760239975,-725.22997735,0.00017,2]
[365528820,1749760240030,-2661.7,0.00017,2]
[365528821,1749760240087,-1246441.82285746,0.00017,2]
[365528822,1749760240096,-151.0,0.00017,2]
[365528823,1749760240106,-151.0,0.00017,2]
[365528824,1749760240115,-303177.98489066,0.00017,2]
[365528825,1749760240125,-599.37476395,0.00017,2]
[365528826,1749760240135,-6237.65336764,0.00017,2]
[365528858,1749760242738,-4733.33466883,0.00017,2]
[365528859,1749760242749,-323027.46320096,0.00017,2]
[365528860,1749760243106,-9678.8419529,0.00017,2]
[365528861,1749760243117,-1748.768136,0.00017,2]
[365528863,1749760243128,-10679.5368,0.00017,2]
[365528877,1749760245620,-833.43051846,0.00017,3]
[365528878,1749760245630,-86201.63878351,0.00017,2]
[365528879,1749760245642,-19888.0511999,0.00017,2]
[365528880,1749760245677,-156489.59152597,0.00017,2]
[365528881,1749760245690,-4174.94954091,0.00017,2]
[365528882,1749760245701,-526.65340854,0.00017,2]
[365528883,1749760245841,-17091.68748971,0.00017,2]
[365529068,1749760372615,410.14,0.00013699,2]
[365529075,1749760554071,200.0,0.00015983,7]
[365529076,1749760723984,299.83,0.00015978,2]
[365529077,1749760747288,4511.43487967,0.00017,10]
[365529078,1749760768527,802.5,0.00014039,2]
[365529079,1749760817585,1000.0,0.0001587,2]
[365529080,1749760890487,666.0,0.00015862,2]
[365529081,1749760901546,200.0,0.00015223,2]
[365529082,1749760956190,535.85,0.00015864,2]
[365529092,1749761065208,162.07,0.00015833,2]
[365529093,1749761065239,162.07,0.00015846,2]
[365529094,1749761065270,162.07,0.0001586,2]
[365529095,1749761065299,162.07,0.00015873,2]
[365529096,1749761065328,162.07,0.00015886,2]
[365529097,1749761065364,162.07,0.00015899,2]
[365529098,1749761065399,162.07,0.00015912,2]
[365529099,1749761137617,1905.56,0.00015897,2]
[365529100,1749761261515,200.0,0.00015371,2]
[365529102,1749761354658,389.63,0.00013699,2]
[365529119,1749761431871,-372.99804426,0.00016067,2]
[365529120,1749761431887,-351.82,0.00016067,2]
[365529121,1749761431899,-962.80195574,0.00016067,2]
[365529123,1749761431908,-300.0,0.00016068,2]
[365529125,1749761431918,-250.0,0.00016068,2]
[365529126,1749761431927,-300.0,0.00016069,2]
[365529127,1749761431936,-600.0,0.00016069,4]
[365529128,1749761431946,-247.19804428,0.00016096,2]
[365529129,1749761431957,-2.80195572,0.00016096,2]
[365529130,1749761431967,-287.6710431,0.00016149,2]
[365529131,1749761431978,-435.9450485,0.00016149,2]
[365529132,1749761432010,-1234.2399084,0.00016149,2]
[365529133,1749761432019,-207.4,0.00016149,2]
[365529134,1749761432029,-100.39206504,0.00016203,2]
[365529135,1749761432044,-1060.0,0.00016203,2]
[365529136,1749761432072,-39.60793496,0.00016203,2]
[365529137,1749761432081,-744.73275848,0.00016204,2]
[365529138,1749761432127,-704.41414524,0.00016204,2]
[365529139,1749761432139,-581.14976828,0.00016204,2]
[365529140,1749761432149,-300.0,0.00016258,2]
[365529141,1749761432158,-877.11580212,0.00016259,2]
[365529142,1749761432168,-200.0,0.000163,5]
[365529143,1749761432177,-802.5,0.00016303,2]
[365529144,1749761432187,-500.0,0.000164,5]
[365529145,1749761432196,-166.1,0.00016463,2]
[365529146,1749761432205,-461.25,0.00016466,2]
[365529147,1749761432214,-800.0,0.000165,6]
[365529148,1749761432223,-94.62026958,0.00016545,3]
[365529149,1749761432235,-105.37973042,0.00016545,3]
[365529150,1749761432244,-1100.0,0.000166,6]
[365529151,1749761432254,-162.0,0.00016603,2]
[365529152,1749761432263,-687.83407237,0.0001666,2]
[365529206,1749761433255,-116.80530763,0.0001666,2]
[365529207,1749761433265,-1400.0,0.000167,6]
[365529208,1749761433275,-611.32069237,0.0001678,2]
[365529209,1749761433287,-256.67176783,0.0001678,2]
[365529210,1749761433306,-872.0,0.000168,2]
[365529211,1749761433317,-200.0,0.000168,6]
[365529212,1749761433327,-479.0,0.0001683,2]
[365529213,1749761433338,-300.0,0.00016889,2]
[365529214,1749761433353,-151.0,0.0001689,2]
[365529215,1749761433363,-500.0,0.0001689,2]
[365529216,1749761433373,-200.0,0.000169,6]
[365529217,1749761433385,-500.0,0.000169,2]
[365529218,1749761433395,-224.49259573,0.000169,2]
[365529219,1749761433405,-564.58275644,0.000169,2]
[365529220,1749761433417,-970.48628034,0.000169,2]
[365529232,1749761437785,-964.93096322,0.000169,2]
[365529234,1749761437795,-188.97861563,0.000169,2]
[365529235,1749761437805,-846.09042115,0.000169,2]
[365529237,1749761437945,-8.18436139,0.000169,2]
[365529238,1749761437955,-334.71213412,0.00016913,2]
[365529239,1749761437967,-214.28786588,0.00016913,2]
[365529240,1749761437977,-150.6,0.00016947,2]
[365529241,1749761437986,-150.0,0.00016947,2]
[365529242,1749761437996,-150.0,0.00016947,2]
[365529243,1749761438005,-150.0,0.00016947,2]
[365529244,1749761438015,-150.0,0.00016947,2]
[365529245,1749761438024,-150.0,0.00016947,2]
[365529246,1749761438034,-300.0,0.00016947,2]
[365529247,1749761438044,-500.0,0.00016973,2]
[365529248,1749761438053,-500.0,0.00016973,2]
[365529249,1749761438063,-248.11213412,0.00016973,2]
[365529250,1749761438079,-272.18164738,0.00016973,2]
[365529251,1749761438088,-262.41285262,0.00016973,2]
[365529252,1749761438100,-237.58714738,0.00016973,2]
[365529253,1749761438109,-488.56512033,0.0001699,10]
[365529254,1749761438118,-335.34773229,0.00016994,2]
[365529255,1749761438132,-498.08278617,0.00016994,2]
[365529256,1749761438142,-101.91721383,0.00016997,2]
[365529257,1749761438278,-288.08278617,0.00016997,2]
[365529258,1749761438288,-806.033,0.00016997,2]
[365529259,1749761438298,-240.35832168,0.00016999,2]
[365529260,1749761438307,-500.0,0.00016999,2]
[365529261,1749761438317,-500.0,0.00016999,2]
[365529262,1749761438327,-500.0,0.00016999,2]
[365529263,1749761438336,-500.0,0.00016999,2]
[365529264,1749761438347,-500.0,0.00016999,2]
[365529265,1749761438357,-500.0,0.00016999,2]
[365529266,1749761438367,-500.0,0.00016999,2]
[365529267,1749761438377,-500.0,0.00016999,2]
[365529269,1749761438391,-606.83319422,0.00016999,2]
[365529271,1749761438400,-500.0,0.00016999,2]
[365529273,1749761438410,-500.0,0.00016999,2]
[365529274,1749761438420,-500.0,0.00016999,2]
[365529276,1749761438430,-500.0,0.00016999,2]
[365529287,1749761438861,-300.0,0.00016999,2]
[365529288,1749761438872,-833.43051846,0.00017,3]
[365529289,1749761438885,-701.0,0.00017,2]
[365529290,1749761438894,-11441.22217947,0.00017,2]
[365529313,1749761441356,-275.49755973,0.00017,3]
[365529314,1749761441366,-688145.24015881,0.00017,2]
[365529315,1749761441375,-868338.09816117,0.00017,2]
[365529316,1749761441415,-1244.12210428,0.00017,2]
[365529317,1749761441427,-162099.16600744,0.00017,2]
[365529318,1749761441439,-3184.4,0.00017,2]
[365529319,1749761441450,-2645.0,0.00017,2]
[365529320,1749761441461,-10609.08233709,0.00017,2]
[365529321,1749761441525,-1082.31245376,0.00017,2]
[365529322,1749761441536,-1626.11604874,0.00017,2]
[365529323,1749761441638,202.0,0.00015371,2]
[365529330,1749761442991,-10658.52,0.00017,2]
[365529332,1749761443099,-426.02641921,0.00017,2]
[365529333,1749761443111,-5309.39999988,0.00017,2]
[365529334,1749761443210,-102460.62684907,0.00017,2]
[365529335,1749761443221,-37340.90938002,0.00017,2]
[365529336,1749761443232,-41771.06849722,0.00017,2]
[365529337,1749761443243,-122353.31748748,0.00017,2]
[365529350,1749761444211,-9548.1,0.00017,2]
[365529351,1749761444223,-3660.25086337,0.00017,2]
[365529352,1749761444234,-10601.0,0.00017,2]
[365529375,1749761445863,-345.69,0.00016415,2]
[365529376,1749761445873,-201.23499734,0.00017,2]
[365529377,1749761445885,-26339.21690742,0.00017,2]
[365529378,1749761445923,-5300.0,0.00017,2]
[365529379,1749761445934,-1436.228,0.00017,2]
[365529380,1749761445980,-16278.06650019,0.00017,2]
[365529381,1749761446038,-2122.12,0.00017,2]
[365529382,1749761446136,-126453.23851511,0.00017,2]
[365529389,1749761446533,-2466.79076116,0.00017,2]
[365529390,1749761446545,-4051.04899345,0.00017,2]
[365529391,1749761446575,-848.3419997,0.00017,2]
[365529392,1749761471431,200.0,0.00015371,2]
[365529393,1749761501409,200.0,0.00015371,2]
[365529394,1749761607460,1001.80168717,0.0002,30]
[365529399,1749761913196,-209.05865562,0.00016005,2]
[365529400,1749761915376,-185.01211623,0.00016005,2]
[365529401,1749761920945,-199.22388001,0.00016005,2]
[365529402,1749761925651,-205.00971495,0.00016005,2]
[365529403,1749761933579,-201.69563319,0.00016005,2]
[365529404,1749761943974,825.73,0.00014088,2]
[365529406,1749761981415,200.0,0.0001572,2]
[365529407,1749762139360,5557.0,0.00016,5]
[365529408,1749762160118,666.0,0.00015884,2]
[365529409,1749762184464,1158.36,0.00015854,2]
[365529410,1749762190571,166.26,0.0001585,2]
[365529411,1749762257840,250.0,0.00015887,2]
[365529412,1749762285639,155.92,0.00015888,2]
[365529413,1749762285883,155.92,0.00015894,2]
[365529414,1749762286082,155.92,0.000159,2]
[365529415,1749762286276,155.92,0.00015905,2]
[365529416,1749762287135,155.92,0.00015911,2]
[365529417,1749762287170,155.92,0.00015917,2]
[365529418,1749762287210,155.92,0.00015922,2]
[365529419,1749762287308,155.92,0.00015928,2]
[365529420,1749762287544,155.92,0.00015934,2]
[365529421,1749762287757,155.92,0.00015939,2]
[365529422,1749762287951,155.92,0.00015945,2]
[365529423,1749762288182,155.92,0.00015951,2]
[365529424,1749762288376,155.92,0.00015956,2]
[365529425,1749762288597,155.92,0.00015962,2]
[365529426,1749762289057,155.92,0.00015968,2]
[365529427,1749762341505,200.0,0.00015916,2]
[365529429,1749762452806,245.06,0.00015855,2]
[365529430,1749762454998,855.59,0.00015855,2]
[365529431,1749762482721,1048.95,0.00015855,2]
[365529441,1749762585495,2702.91,0.00015985,2]
[365529442,1749762598123,370.14,0.00013699,2]
[365529444,1749762621531,3294.86,0.00015981,2]
[365529445,1749762623334,200.0,0.00015853,7]
[365529455,1749762632064,-300.0,0.00016063,2]
[365529456,1749762632074,-300.0,0.00016063,2]
[365529457,1749762632084,-600.0,0.00016063,4]
[365529458,1749762632094,-600.0,0.00016063,4]
[365529459,1749762632103,-250.0,0.00016063,2]
[365529460,1749762632113,-169.31432995,0.00016063,2]
[365529461,1749762632122,-600.0,0.00016083,4]
[365529462,1749762632132,-250.0,0.00016083,2]
[365529463,1749762632142,-166.66,0.00016318,2]
[365529464,1749762632152,-825.73,0.00016352,2]
[365529465,1749762632162,-500.0,0.0001663,2]
[365529466,1749762632172,-824.326057,0.0001666,2]
[365529467,1749762632180,-34.83955808,0.00016776,2]
[365529468,1749762632195,-127.16044192,0.00016776,2]
[365529469,1749762632203,-1200.0,0.00016789,2]
[365529470,1749762632212,-1957.856,0.0001679,2]
[365529471,1749762632220,-207.4,0.0001679,2]
[365529472,1749762632229,-300.0,0.00016798,2]
[365529473,1749762632238,-213.60417033,0.000168,2]
[365529474,1749762632247,-189.0,0.00016805,2]
[365529475,1749762632256,-1141.94005408,0.00016811,2]
[365529476,1749762632265,-867.9924602,0.00016812,2]
[365529477,1749762632275,-1174.82658977,0.00016845,2]
[365529478,1749762632284,-200.0,0.00016856,2]
[365529479,1749762632295,-246.43132582,0.00016881,2]
[365529480,1749762632304,-212.08120143,0.0001689,2]
[365529481,1749762632313,-151.0,0.0001689,2]
[365529482,1749762632322,-500.0,0.0001689,2]
[365529483,1749762632332,-151.0,0.0001689,2]
[365529484,1749762632342,-151.0,0.0001689,2]
[365529485,1749762632352,-151.0,0.0001689,2]
[365529486,1749762632361,-151.0,0.0001689,2]
[365529487,1749762632371,-151.0,0.0001689,2]
[365529488,1749762632380,-265.49345065,0.0001689,2]
[365529489,1749762632389,-366.0,0.00016894,2]
[365529490,1749762632399,-297.88597835,0.00016895,2]
[365529491,1749762632408,-500.0,0.00016895,2]
[365529492,1749762632418,-500.0,0.00016895,2]
[365529493,1749762632427,-500.0,0.00016895,2]
[365529494,1749762632437,-500.0,0.00016895,2]
[365529495,1749762632447,-476.02286398,0.00016895,2]
[365529496,1749762632461,-23.97713602,0.00016895,2]
[365529497,1749762632471,-500.0,0.00016895,2]
[365529498,1749762632480,-225.85433197,0.00016895,2]
[365529499,1749762632491,-127.31458471,0.00016895,2]
[365529500,1749762632500,-500.0,0.00016895,2]
[365529501,1749762632509,-500.0,0.00016895,2]
[365529502,1749762632518,-393.47657323,0.00016895,2]
[365529504,1749762632527,-500.0,0.00016895,2]
[365529506,1749762632539,-500.0,0.00016895,2]
[365529508,1749762632549,-460.24954919,0.00016895,2]
[365529510,1749762632561,-39.75045081,0.00016895,2]
[365529511,1749762632571,-500.0,0.00016895,2]
[365529512,1749762632582,-500.0,0.00016895,2]
[365529513,1749762632593,-500.0,0.00016895,2]
[365529514,1749762632603,-500.0,0.00016895,2]
[365529515,1749762632614,-500.0,0.00016895,2]
[365529516,1749762632623,-500.0,0.00016895,2]
[365529517,1749762632633,-500.0,0.00016895,2]
[365529518,1749762632643,-500.0,0.00016895,2]
[365529519,1749762632653,-201.74477642,0.00016895,2]
[365529520,1749762632665,-373.17230641,0.00016895,2]
[365529521,1749762632676,-93.48461942,0.00016895,2]
[365529522,1749762632686,-1160.0,0.00016897,2]
[365529524,1749762632695,-853.0,0.00016899,2]
[365529526,1749762632704,-733.3690522,0.00016899,2]
[365529528,1749762632715,-3353.6309478,0.00016899,2]
[365529530,1749762632725,-155.0,0.00016899,2]
[365529532,1749762632734,-1000.0,0.000169,2]
[365529534,1749762632746,-12442.4876,0.000169,2]
[365529536,1749762632756,-169760.9236,0.000169,2]
[365529538,1749762632766,-180.34460197,0.000169,2]
[365529540,1749762632775,-213.60417032,0.000169,2]
[365529542,1749762632784,-163.94067104,0.000169,2]
[365529544,1749762632796,-164.16848766,0.000169,2]
[365529546,1749762632806,-3963.2173,0.000169,2]
[365529548,1749762632815,-10820.87875887,0.000169,2]
[365529550,1749762632824,-569.51652168,0.000169,2]
[365529552,1749762632835,-341.35,0.00016908,2]
[365529553,1749762632844,-150.0,0.00016922,2]
[365529555,1749762632853,-354.6,0.00016922,2]
[365529557,1749762632863,-833.43051846,0.00016926,2]
[365529559,1749762632872,-500.0,0.00016973,2]
[365529560,1749762632882,-500.0,0.00016973,2]
[365529561,1749762632891,-500.0,0.00016973,2]
[365529562,1749762632902,-246.43132582,0.00016975,2]
[365529563,1749762632911,-246.43132582,0.00016977,2]
[365529564,1749762632921,-350.0,0.00016983,2]